fUST/lending_fUST_20251020
["ID","MTS","AMOUNT","RATE_DAILY","PERIOD"]
[391864386,1760933534796,-251.91852193,0.00036053,30]
[391864387,1760933534806,-229.69,0.00036057,60]
[391864388,1760933534815,-500.0,0.000361,5]
[391864389,1760933534824,-200.0,0.00036113,120]
[391864390,1760933534833,-229.69,0.00036157,60]
[391864391,1760933534843,-1535.54,0.000362,15]
[391864392,1760933534852,-229.69,0.00036257,60]
[391864393,1760933534862,-154.299273,0.00036332,20]
[391864394,1760933534871,-155.459664,0.00036332,20]
[391864395,1760933534881,-229.69,0.00036357,60]
[391864396,1760933534891,-261.53,0.00036378,2]
[391864397,1760933534903,-229.69,0.00036457,60]
[391864398,1760933534913,-40000.0,0.000365,120]
[391864399,1760933534923,-1209.57,0.000365,2]
[391864400,1760933534934,-417.15472785,0.000365,120]
[391864401,1760933534943,-229.69,0.00036557,60]
[391864402,1760933534952,-229.69,0.00036657,60]
[391864403,1760933534961,-4281.95,0.00036712,120]
[391864404,1760933534971,-171.5445727,0.00036712,30]
[391864405,1760933534981,-200.0,0.00036741,120]
[391864406,1760933534990,-230.03484956,0.00036757,60]
[391864407,1760933535000,-201390.23746951,0.00036789,60]
[391864408,1760933535010,-29420.64168461,0.00036789,60]
[391864409,1760933535019,-191.833172,0.00036789,120]
[391864410,1760933535029,-153.024336,0.00036789,30]
[391864411,1760933535038,-151.0,0.00036789,120]
[391864412,1760933535053,-151.0,0.00036789,120]
[391864413,1760933535062,-151.937815,0.00036789,120]
[391864414,1760933535071,-153.186666,0.00036789,120]
[391864415,1760933535081,-153.297515,0.00036789,120]
[391864416,1760933535090,-151.0,0.00036789,120]
[391864417,1760933535100,-151.0,0.00036789,120]
[391864418,1760933535109,-151.0,0.00036789,120]
[391864419,1760933535118,-152.531305,0.00036789,120]
[391864420,1760933535128,-155.541937,0.00036789,120]
[391864421,1760933535137,-151.0,0.00036789,120]
[391864422,1760933535147,-151.0,0.00036789,120]
[391864423,1760933535157,-152.135902,0.00036789,120]
[391864424,1760933535167,-152.941326,0.00036789,120]
[391864425,1760933535176,-151.0,0.00036789,120]
[391864426,1760933535187,-151.0,0.00036789,120]
[391864427,1760933535197,-151.0,0.00036789,120]
[391864428,1760933535206,-151.0,0.00036789,120]
[391864429,1760933535215,-197.049535,0.00036789,120]
[391864430,1760933535224,-191.931305,0.00036789,120]
[391864431,1760933535234,-191.931305,0.00036789,120]
[391864432,1760933535245,-191.931305,0.00036789,120]
[391864433,1760933535255,-191.931305,0.00036789,120]
[391864434,1760933535265,-151.0,0.00036789,120]
[391864435,1760933535274,-152.785475,0.00036789,120]
[391864436,1760933535283,-151.0,0.00036789,120]
[391864437,1760933535295,-285.713584,0.00036789,120]
[391864438,1760933535304,-153.471486,0.00036789,120]
[391864439,1760933535313,-166.39,0.00036812,60]
[391864440,1760933535322,-166.39,0.00036912,60]
[391864441,1760933535332,-1000.0,0.00037,120]
[391864442,1760933535341,-10000.0,0.00037,120]
[391864443,1760933535351,-402.9601108,0.00037,120]
[391864444,1760933535360,-1094.65254395,0.00037,120]
[391864445,1760933535370,-417.15472785,0.00037,120]
[391864446,1760933535379,-1111.0,0.00037,7]
[391864447,1760933535389,-166.39,0.00037012,60]
[391864448,1760933535399,-166.39,0.00037112,60]
[391864449,1760933535408,-200.0,0.000372,120]
[391864450,1760933535418,-200.0,0.000372,120]
[391864451,1760933535428,-200.0,0.000372,120]
[391864452,1760933535438,-166.39,0.00037212,60]
[391864453,1760933535448,-154.299273,0.00037268,2]
[391864454,1760933535458,-155.459664,0.00037268,2]
[391864455,1760933535466,-200.0,0.00037291,120]
[391864456,1760933535476,-3955.76579345,0.000373,2]
[391864457,1760933535485,-3620.07,0.000373,14]
[391864458,1760933535495,-166.39,0.00037312,60]
[391864459,1760933535504,-7211.37420234,0.00037344,2]
[391864460,1760933535513,-155.0,0.00037397,30]
[391864461,1760933535523,-218.7154816,0.00037397,30]
[391864462,1760933535532,-153.0,0.00037397,30]
[391864463,1760933535543,-153.0,0.00037397,30]
[391864464,1760933535552,-153.0,0.00037397,30]
[391864465,1760933535561,-154.299273,0.00037398,20]
[391864466,1760933535571,-155.459664,0.00037398,20]
[391864467,1760933535581,-21158.32,0.000374,14]
[391864468,1760933535591,-166.39,0.00037412,60]
[391864469,1760933535601,-779966.952,0.00037444,7]
[391864470,1760933535611,-152.333517,0.00037444,120]
[391864471,1760933535620,-461245.7393,0.00037444,7]
[391864472,1760933535631,-214.921115,0.00037444,120]
[391864473,1760933535641,-152.158419,0.00037444,120]
[391864474,1760933535650,-152.340234,0.00037444,120]
[391864475,1760933535659,-151.0,0.00037444,120]
[391864476,1760933535669,-153.004031,0.00037444,120]
[391864477,1760933535678,-152.597129,0.00037444,120]
[391864478,1760933535687,-162.681699,0.00037444,120]
[391864479,1760933535697,-162.681699,0.00037444,120]
[391864480,1760933535707,-162.681699,0.00037444,120]
[391864481,1760933535716,-162.681699,0.00037444,120]
[391864482,1760933535726,-162.681699,0.00037444,120]
[391864483,1760933535736,-162.681699,0.00037444,120]
[391864484,1760933535745,-162.681699,0.00037444,120]
[391864485,1760933535754,-162.681699,0.00037444,120]
[391864486,1760933535765,-153.054373,0.00037444,120]
[391864487,1760933535775,-151.0,0.00037444,120]
[391864488,1760933535785,-151.0,0.00037444,120]
[391864489,1760933535798,-151.0,0.00037444,7]
[391864490,1760933535808,-164.374098,0.00037444,7]
[391864491,1760933535818,-151.0,0.00037444,120]
[391864492,1760933535828,-151.0,0.00037444,120]
[391864493,1760933535837,-151.0,0.00037444,120]
[391864494,1760933535847,-166.458808,0.00037444,120]
[391864495,1760933535857,-151.0,0.00037444,120]
[391864496,1760933535866,-151.0,0.00037444,120]
[391864497,1760933535875,-152.955357,0.00037444,120]
[391864498,1760933535884,-151.0,0.00037444,120]
[391864499,1760933535894,-151.0,0.00037444,120]
[391864500,1760933535908,-158.004268,0.00037444,120]
[391864501,1760933535917,-154.287719,0.00037444,120]
[391864502,1760933535926,-151.0,0.00037444,120]
[391864503,1760933535936,-151.0,0.00037444,120]
[391864504,1760933535947,-151.0,0.00037444,120]
[391864505,1760933535957,-151.0,0.00037444,120]
[391864506,1760933535966,-151.0,0.00037444,120]
[391864507,1760933535976,-151.0,0.00037444,120]
[391864508,1760933535986,-151.0,0.00037444,120]
[391864509,1760933535996,-151.0,0.00037444,120]
[391864510,1760933536006,-151.0,0.00037444,120]
[391864511,1760933536016,-151.0,0.00037444,120]
[391864512,1760933536026,-151.70547,0.00037444,120]
[391864513,1760933536036,-151.0,0.00037444,120]
[391864514,1760933536048,-169.896301,0.00037444,120]
[391864515,1760933536058,-152.784559,0.00037444,120]
[391864516,1760933536068,-151.0,0.00037444,120]
[391864517,1760933536077,-174.276273,0.00037444,120]
[391864518,1760933536087,-151.0,0.00037444,120]
[391864519,1760933536098,-151.0,0.00037444,120]
[391864520,1760933536107,-151.0,0.00037444,120]
[391864521,1760933536117,-168.721337,0.00037444,120]
[391864522,1760933536129,-151.0,0.00037444,120]
[391864523,1760933536140,-151.0,0.00037444,120]
[391864524,1760933536151,-151.0,0.00037444,120]
[391864525,1760933536161,-151.0,0.00037444,120]
[391864526,1760933536171,-151.0,0.00037444,120]
[391864527,1760933536180,-151.0,0.00037444,120]
[391864528,1760933536190,-191.931305,0.00037444,120]
[391864529,1760933536200,-191.931305,0.00037444,120]
[391864530,1760933536209,-191.931305,0.00037444,120]
[391864531,1760933536218,-191.931305,0.00037444,120]
[391864532,1760933536227,-191.931305,0.00037444,120]
[391864533,1760933536237,-191.931305,0.00037444,120]
[391864534,1760933536247,-191.931305,0.00037444,120]
[391864535,1760933536257,-191.931305,0.00037444,120]
[391864536,1760933536266,-151.0,0.00037444,120]
[391864537,1760933536276,-151.0,0.00037444,120]
[391864538,1760933536288,-151.0,0.00037444,120]
[391864539,1760933536302,-151.0,0.00037444,120]
[391864540,1760933536311,-151.0,0.00037444,120]
[391864541,1760933536320,-151.0,0.00037444,120]
[391864542,1760933536332,-153.970527,0.00037444,120]
[391864543,1760933536341,-151.0,0.00037444,120]
[391864544,1760933536351,-151.0,0.00037444,120]
[391864545,1760933536360,-151.0,0.00037444,120]
[391864546,1760933536370,-299.233056,0.00037444,120]
[391864547,1760933536380,-151.0,0.00037444,120]
[391864548,1760933536389,-151.0,0.00037444,120]
[391864549,1760933536398,-151.0,0.00037444,120]
[391864550,1760933536407,-251.02801605,0.00037444,120]
[391864551,1760933536417,-151.0,0.00037444,120]
[391864552,1760933536427,-188.461489,0.00037444,120]
[391864553,1760933536437,-151.0,0.00037444,120]
[391864554,1760933536446,-151.0,0.00037444,120]
[391864555,1760933536456,-158.442175,0.00037444,120]
[391864556,1760933536465,-151.0,0.00037444,120]
[391864557,1760933536476,-151.0,0.00037444,120]
[391864558,1760933536485,-151.0,0.00037444,120]
[391864559,1760933536495,-151.0,0.00037444,120]
[391864560,1760933536504,-190.349462,0.00037444,120]
[391864561,1760933536515,-151.0,0.00037444,120]
[391864562,1760933536524,-151.0,0.00037444,120]
[391864563,1760933536534,-151.0,0.00037444,120]
[391864564,1760933536544,-151.0,0.00037444,120]
[391864565,1760933536553,-226.793527,0.00037444,120]
[391864566,1760933536563,-666.96181,0.00037444,120]
[391864567,1760933536572,-666.96181,0.00037444,120]
[391864568,1760933536582,-151.0,0.00037444,120]
[391864569,1760933536591,-154.581921,0.00037444,120]
[391864570,1760933536692,-666.96181,0.00037444,120]
[391864571,1760933536701,-666.96181,0.00037444,120]
[391864572,1760933536710,-666.96181,0.00037444,120]
[391864573,1760933536720,-666.96181,0.00037444,120]
[391864574,1760933536729,-666.96181,0.00037444,120]
[391864575,1760933536737,-333.37,0.00037452,30]
[391864576,1760933536746,-6000.0,0.000375,2]
[391864577,1760933536755,-166.39,0.00037512,60]
[391864578,1760933536764,-539.291198,0.0003757,30]
[391864579,1760933536773,-589.7208673,0.0003757,30]
[391864580,1760933536782,-166.39,0.00037612,60]
[391864581,1760933536791,-290.59,0.00037632,2]
[391864582,1760933536800,-1500.0,0.00037633,7]
[391864583,1760933536809,-200.0,0.00037638,120]
[391864584,1760933536819,-6142.16,0.000377,19]
[391864585,1760933536828,-1000.0,0.00037712,4]
[391864586,1760933536837,-166.39,0.00037712,60]
[391864587,1760933536846,-169.152193,0.00037784,60]
[391864588,1760933536856,-4281.95,0.00037808,120]
[391864589,1760933536865,-166.39,0.00037812,60]
[391864590,1760933536874,-219.74027321,0.00037897,2]
[391864591,1760933536883,-200.0,0.00037908,120]
[391864592,1760933536893,-166.39,0.00037912,60]
[391864593,1760933536906,-200.0,0.00037976,120]
[391864594,1760933536915,-1000.0,0.00038,120]
[391864595,1760933536924,-4000.0,0.00038,120]
[391864596,1760933536935,-500.0,0.00038,5]
[391864597,1760933536945,-3155000.0,0.00038,7]
[391864598,1760933536954,-7500.89277089,0.00038,60]
[391864599,1760933536963,-1111.0,0.00038,7]
[391864600,1760933536974,-200.0,0.00038005,120]
[391864601,1760933536983,-166.39,0.00038012,60]
[391864602,1760933536991,-198.0,0.0003807,48]
[391864603,1760933537000,-1094.65254395,0.000381,120]
[391864604,1760933537010,-166.39,0.00038112,60]
[391864605,1760933537019,-241.83987376,0.000382,120]
[391864606,1760933537028,-166.39,0.00038212,60]
[391864607,1760933537037,-200.0,0.00038281,120]
[391864608,1760933537048,-1209.57,0.000383,2]
[391864609,1760933537057,-166.39,0.00038312,60]
[391864610,1760933537066,-1000.0,0.00038356,30]
[391864611,1760933537075,-1000.0,0.00038356,30]
[391864612,1760933537084,-1000.0,0.00038356,30]
[391864613,1760933537093,-1000.0,0.00038356,30]
[391864614,1760933537102,-1000.0,0.00038356,30]
[391864615,1760933537110,-214.75587767,0.00038356,30]
[391864616,1760933537119,-500.0,0.00038356,30]
[391864617,1760933537128,-500.0,0.00038356,30]
[391864618,1760933537137,-500.0,0.00038356,30]
[391864619,1760933537147,-500.0,0.00038356,30]
[391864620,1760933537156,-157.15073599,0.00038356,30]
[391864621,1760933537165,-500.0,0.00038356,30]
[391864622,1760933537174,-500.0,0.00038356,30]
[391864623,1760933537183,-500.0,0.00038356,30]
[391864624,1760933537192,-500.0,0.00038356,30]
[391864625,1760933537201,-500.0,0.00038356,30]
[391864626,1760933537209,-500.0,0.00038356,30]
[391864627,1760933537218,-500.0,0.00038356,30]
[391864628,1760933537228,-500.0,0.00038356,30]
[391864629,1760933537237,-500.0,0.00038356,30]
[391864630,1760933537246,-500.0,0.00038356,30]
[391864631,1760933537255,-500.0,0.00038356,30]
[391864632,1760933537264,-500.0,0.00038356,30]
[391864633,1760933537273,-500.0,0.00038356,30]
[391864634,1760933537282,-500.0,0.00038356,30]
[391864635,1760933537291,-500.0,0.00038356,30]
[391864636,1760933537301,-500.0,0.00038356,30]
[391864637,1760933537310,-500.0,0.00038356,30]
[391864638,1760933537320,-500.0,0.00038356,30]
[391864639,1760933537329,-500.0,0.00038356,30]
[391864640,1760933537339,-500.0,0.00038356,30]
[391864641,1760933537348,-591.06592623,0.00038356,30]
[391864642,1760933537357,-500.0,0.00038356,30]
[391864643,1760933537366,-413.90350377,0.00038356,30]
[391864644,1760933537375,-500.88605678,0.00038356,30]
[391864645,1760933537385,-500.0,0.00038356,30]
[391864646,1760933537394,-500.0,0.00038356,30]
[391864647,1760933537404,-516.03910397,0.00038356,30]
[391864648,1760933537413,-500.0,0.00038356,30]
[391864649,1760933537422,-500.0,0.00038356,30]
[391864650,1760933537432,-500.0,0.00038356,30]
[391864651,1760933537441,-500.0,0.00038356,30]
[391864652,1760933537450,-500.0,0.00038356,30]
[391864653,1760933537459,-378.66750229,0.00038356,30]
[391864654,1760933537468,-500.0,0.00038356,30]
[391864655,1760933537477,-514.19440555,0.00038356,30]
[391864656,1760933537486,-500.0,0.00038356,30]
[391864657,1760933537495,-515.8295611,0.00038356,30]
[391864658,1760933537504,-503.50263037,0.00038356,30]
[391864659,1760933537513,-857.37,0.00038356,30]
[391864660,1760933537522,-857.37,0.00038356,30]
[391864661,1760933537531,-857.37,0.00038356,30]
[391864662,1760933537542,-857.37,0.00038356,30]
[391864663,1760933537551,-857.37,0.00038356,30]
[391864664,1760933537560,-857.37,0.00038356,30]
[391864665,1760933537569,-857.37,0.00038356,30]
[391864666,1760933537578,-500.0,0.00038356,30]
[391864667,1760933537587,-500.0,0.00038356,30]
[391864668,1760933537597,-857.37,0.00038356,30]
[391864669,1760933537606,-500.0,0.00038356,30]
[391864670,1760933537615,-857.37,0.00038356,30]
[391864671,1760933537624,-500.0,0.00038356,30]
[391864672,1760933537633,-857.37,0.00038356,30]
[391864673,1760933537641,-500.0,0.00038356,30]
[391864674,1760933537650,-857.37,0.00038356,30]
[391864675,1760933537659,-500.0,0.00038356,30]
[391864676,1760933537668,-857.37,0.00038356,30]
[391864677,1760933537677,-500.0,0.00038356,30]
[391864678,1760933537686,-857.37,0.00038356,30]
[391864679,1760933537696,-500.0,0.00038356,30]
[391864680,1760933537706,-857.37,0.00038356,30]
[391864681,1760933537714,-857.37,0.00038356,30]
[391864682,1760933537724,-599.55052318,0.00038356,30]
[391864683,1760933537733,-857.37,0.00038356,30]
[391864684,1760933537742,-857.37,0.00038356,30]
[391864685,1760933537751,-857.37,0.00038356,30]
[391864686,1760933537761,-857.37,0.00038356,30]
[391864687,1760933537770,-857.37,0.00038356,30]
[391864688,1760933537779,-857.37,0.00038356,30]
[391864689,1760933537788,-857.37,0.00038356,30]
[391864690,1760933537800,-857.37,0.00038356,30]
[391864691,1760933537809,-857.56382073,0.00038356,30]
[391864692,1760933537818,-500.0,0.00038356,20]
[391864693,1760933537828,-502.5409925,0.00038356,20]
[391864694,1760933537837,-500.0,0.00038356,30]
[391864695,1760933537846,-500.0,0.00038356,30]
[391864696,1760933537855,-500.0,0.00038356,30]
[391864697,1760933537865,-500.0,0.00038356,30]
[391864698,1760933537875,-500.0,0.00038356,30]
[391864699,1760933537887,-500.0,0.00038356,30]
[391864700,1760933537898,-500.0,0.00038356,30]
[391864701,1760933537911,-500.0,0.00038356,30]
[391864702,1760933537920,-500.0,0.00038356,30]
[391864703,1760933537930,-500.0,0.00038356,30]
[391864704,1760933537939,-500.0,0.00038356,30]
[391864705,1760933537949,-500.0,0.00038356,30]
[391864706,1760933537959,-500.0,0.00038356,30]
[391864707,1760933537970,-500.0,0.00038356,30]
[391864708,1760933537981,-500.0,0.00038356,30]
[391864709,1760933537991,-154.1741018,0.00038356,30]
[391864710,1760933538000,-500.0,0.00038356,30]
[391864711,1760933538010,-500.0,0.00038356,30]
[391864712,1760933538020,-500.0,0.00038356,30]
[391864713,1760933538029,-500.0,0.00038356,30]
[391864714,1760933538039,-500.0,0.00038356,30]
[391864715,1760933538049,-500.0,0.00038356,30]
[391864716,1760933538058,-500.0,0.00038356,30]
[391864717,1760933538067,-500.0,0.00038356,30]
[391864718,1760933538076,-500.0,0.00038356,30]
[391864719,1760933538085,-500.0,0.00038356,30]
[391864720,1760933538094,-500.0,0.00038356,30]
[391864721,1760933538103,-500.0,0.00038356,30]
[391864722,1760933538113,-500.0,0.00038356,30]
[391864723,1760933538122,-500.0,0.00038356,30]
[391864724,1760933538132,-500.0,0.00038356,30]
[391864725,1760933538142,-500.0,0.00038356,30]
[391864726,1760933538152,-500.0,0.00038356,30]
[391864727,1760933538161,-500.0,0.00038356,30]
[391864728,1760933538174,-500.0,0.00038356,30]
[391864729,1760933538184,-490.79118038,0.00038356,30]
[391864730,1760933538194,-500.0,0.00038356,30]
[391864731,1760933538204,-500.0,0.00038356,30]
[391864732,1760933538214,-500.0,0.00038356,30]
[391864733,1760933538224,-500.0,0.00038356,30]
[391864734,1760933538234,-500.0,0.00038356,30]
[391864735,1760933538245,-500.0,0.00038356,30]
[391864736,1760933538254,-500.0,0.00038356,30]
[391864737,1760933538264,-500.0,0.00038356,30]
[391864738,1760933538275,-487.13473801,0.00038356,30]
[391864739,1760933538285,-500.0,0.00038356,30]
[391864740,1760933538298,-588.28924999,0.00038356,30]
[391864741,1760933538307,-500.0,0.00038356,30]
[391864742,1760933538321,-500.0,0.00038356,30]
[391864743,1760933538331,-518.80391616,0.00038356,30]
[391864744,1760933538340,-1000.0,0.00038356,2]
[391864745,1760933538349,-1006.85263742,0.00038356,2]
[391864746,1760933538359,-513.25527332,0.00038356,30]
[391864747,1760933538369,-500.0,0.00038356,30]
[391864748,1760933538378,-500.0,0.00038356,30]
[391864749,1760933538388,-500.0,0.00038356,30]
[391864750,1760933538398,-360.60849727,0.00038356,30]
[391864751,1760933538407,-239.07668097,0.00038356,30]
[391864752,1760933538417,-500.0,0.00038356,30]
[391864753,1760933538426,-500.0,0.00038356,30]
[391864754,1760933538436,-500.0,0.00038356,30]
[391864755,1760933538446,-544.88445405,0.00038356,30]
[391864756,1760933538455,-500.0,0.00038356,30]
[391864757,1760933538465,-281.24693659,0.00038356,30]
[391864758,1760933538474,-503.52360629,0.00038356,30]
[391864759,1760933538483,-500.0,0.00038356,30]
[391864760,1760933538493,-531.54329398,0.00038356,30]
[391864761,1760933538503,-500.0,0.00038356,30]
[391864762,1760933538512,-167.55934351,0.00038356,30]
[391864763,1760933538522,-500.0,0.00038356,30]
[391864764,1760933538532,-500.0,0.00038356,30]
[391864765,1760933538544,-500.0,0.00038356,30]
[391864766,1760933538554,-500.0,0.00038356,30]
[391864767,1760933538564,-190.14020021,0.00038356,30]
[391864768,1760933538574,-500.0,0.00038356,30]
[391864769,1760933538585,-500.0,0.00038356,30]
[391864770,1760933538597,-500.0,0.00038356,30]
[391864771,1760933538607,-500.0,0.00038356,30]
[391864772,1760933538617,-500.0,0.00038356,30]
[391864773,1760933538627,-500.0,0.00038356,30]
[391864774,1760933538636,-500.0,0.00038356,30]
[391864775,1760933538646,-500.0,0.00038356,30]
[391864776,1760933538655,-500.0,0.00038356,30]
[391864777,1760933538665,-500.0,0.00038356,30]
[391864778,1760933538674,-500.0,0.00038356,30]
[391864779,1760933538684,-500.0,0.00038356,30]
[391864780,1760933538694,-500.0,0.00038356,30]
[391864781,1760933538703,-500.0,0.00038356,30]
[391864782,1760933538713,-505.17303771,0.00038356,30]
[391864783,1760933538722,-500.0,0.00038356,30]
[391864784,1760933538733,-500.0,0.00038356,30]
[391864785,1760933538742,-500.0,0.00038356,30]
[391864786,1760933538751,-500.0,0.00038356,30]
[391864787,1760933538761,-500.0,0.00038356,30]
[391864788,1760933538771,-245.40262694,0.00038356,30]
[391864789,1760933538781,-500.0,0.00038356,30]
[391864790,1760933538793,-500.0,0.00038356,30]
[391864791,1760933538803,-500.0,0.00038356,30]
[391864792,1760933538813,-500.0,0.00038356,30]
[391864793,1760933538823,-500.0,0.00038356,30]
[391864794,1760933538832,-427.77502328,0.00038356,30]
[391864795,1760933538842,-500.0,0.00038356,30]
[391864796,1760933538851,-500.0,0.00038356,30]
[391864797,1760933538861,-500.0,0.00038356,30]
[391864798,1760933538871,-500.0,0.00038356,30]
[391864799,1760933538882,-500.0,0.00038356,30]
[391864800,1760933538891,-514.22544725,0.00038356,30]
[391864801,1760933538902,-500.0,0.00038356,30]
[391864802,1760933538914,-500.0,0.00038356,30]
[391864803,1760933538925,-500.0,0.00038356,30]
[391864804,1760933538935,-597.61924028,0.00038356,30]
[391864805,1760933538944,-689.78,0.00038356,30]
[391864806,1760933538954,-689.78,0.00038356,30]
[391864807,1760933538965,-689.78,0.00038356,30]
[391864808,1760933538975,-689.78,0.00038356,30]
[391864809,1760933538987,-689.78,0.00038356,30]
[391864810,1760933539001,-689.78,0.00038356,30]
[391864811,1760933539011,-689.78,0.00038356,30]
[391864812,1760933539022,-689.78,0.00038356,30]
[391864813,1760933539031,-689.78,0.00038356,30]
[391864814,1760933539043,-689.78,0.00038356,30]
[391864815,1760933539053,-689.78,0.00038356,30]
[391864816,1760933539062,-500.0,0.00038356,30]
[391864817,1760933539072,-689.78,0.00038356,30]
[391864818,1760933539083,-500.0,0.00038356,30]
[391864819,1760933539093,-689.78,0.00038356,30]
[391864820,1760933539102,-219.91504359,0.00038356,30]
[391864821,1760933539112,-689.78,0.00038356,30]
[391864822,1760933539122,-689.78,0.00038356,30]
[391864823,1760933539132,-689.78,0.00038356,30]
[391864824,1760933539142,-689.78,0.00038356,30]
[391864825,1760933539153,-689.78,0.00038356,30]
[391864826,1760933539162,-689.78,0.00038356,30]
[391864827,1760933539173,-689.78,0.00038356,30]
[391864828,1760933539184,-689.78,0.00038356,30]
[391864829,1760933539194,-689.78,0.00038356,30]
[391864830,1760933539205,-689.78,0.00038356,30]
[391864831,1760933539214,-689.82025947,0.00038356,30]
[391864832,1760933539224,-500.0,0.00038356,30]
[391864833,1760933539234,-500.0,0.00038356,30]
[391864834,1760933539245,-500.0,0.00038356,30]
[391864835,1760933539254,-500.0,0.00038356,30]
[391864836,1760933539263,-500.0,0.00038356,30]
[391864837,1760933539273,-500.0,0.00038356,30]
[391864838,1760933539282,-500.0,0.00038356,30]
[391864839,1760933539292,-500.0,0.00038356,30]
[391864840,1760933539301,-500.0,0.00038356,30]
[391864841,1760933539311,-500.0,0.00038356,30]
[391864842,1760933539320,-500.0,0.00038356,30]
[391864843,1760933539330,-500.0,0.00038356,30]
[391864844,1760933539340,-500.0,0.00038356,30]
[391864845,1760933539350,-500.0,0.00038356,30]
[391864846,1760933539359,-500.0,0.00038356,30]
[391864847,1760933539369,-500.0,0.00038356,30]
[391864848,1760933539378,-500.0,0.00038356,30]
[391864849,1760933539388,-500.0,0.00038356,30]
[391864850,1760933539397,-500.0,0.00038356,30]
[391864851,1760933539406,-500.0,0.00038356,30]
[391864852,1760933539415,-604.43729833,0.00038356,30]
[391864853,1760933539425,-500.0,0.00038356,30]
[391864854,1760933539434,-280.09040451,0.00038356,30]
[391864855,1760933539443,-500.0,0.00038356,30]
[391864856,1760933539453,-500.0,0.00038356,30]
[391864857,1760933539462,-150.91234476,0.00038356,30]
[391864858,1760933539471,-1447.1,0.00038356,30]
[391864859,1760933539481,-1447.1,0.00038356,30]
[391864860,1760933539490,-1447.1,0.00038356,30]
[391864861,1760933539500,-1447.1,0.00038356,30]
[391864862,1760933539509,-1447.1,0.00038356,30]
[391864863,1760933539518,-1447.1,0.00038356,30]
[391864864,1760933539527,-1447.1,0.00038356,30]
[391864865,1760933539537,-329.03206552,0.00038356,30]
[391864866,1760933539547,-1447.1,0.00038356,30]
[391864867,1760933539557,-1447.1,0.00038356,30]
[391864868,1760933539566,-1447.1,0.00038356,30]
[391864869,1760933539576,-1447.1,0.00038356,30]
[391864870,1760933539585,-1447.1,0.00038356,30]
[391864871,1760933539595,-1447.1,0.00038356,30]
[391864872,1760933539604,-1447.1,0.00038356,30]
[391864873,1760933539614,-1447.1,0.00038356,30]
[391864874,1760933539624,-1447.1,0.00038356,30]
[391864875,1760933539633,-1447.1,0.00038356,30]
[391864876,1760933539642,-1447.1,0.00038356,30]
[391864877,1760933539652,-1447.1,0.00038356,30]
[391864878,1760933539661,-1447.1,0.00038356,30]
[391864879,1760933539671,-1447.1,0.00038356,30]
[391864880,1760933539681,-1447.1,0.00038356,30]
[391864881,1760933539690,-1447.1,0.00038356,30]
[391864882,1760933539704,-1447.30769678,0.00038356,30]
[391864883,1760933539718,-500.0,0.00038356,30]
[391864884,1760933539727,-500.0,0.00038356,30]
[391864885,1760933539737,-420.46092576,0.00038356,30]